fUSD/lending_fUSD_20240122
["ID","MTS","AMOUNT","RATE_DAILY","PERIOD"]
[312522175,1705942268960,-500.0,0.00055068,120]
[312522176,1705942268969,-500.0,0.00055068,120]
[312522177,1705942268979,-959.86,0.00055068,120]
[312522178,1705942268990,-500.0,0.00055068,120]
[312522179,1705942268999,-500.0,0.00055068,120]
[312522180,1705942269009,-500.0,0.00055068,120]
[312522181,1705942269018,-543.78,0.00055068,120]
[312522182,1705942269028,-500.0,0.00055068,120]
[312522183,1705942269044,-500.0,0.00055068,120]
[312522184,1705942269053,-514.24,0.00055068,10]
[312522185,1705942269062,-500.0,0.00055068,120]
[312522186,1705942269085,-723.5,0.00055068,120]
[312522187,1705942269095,-517.26143654,0.00055068,14]
[312522188,1705942269105,-767.63,0.00055068,120]
[312522189,1705942269114,-680.76,0.00055068,120]
[312522190,1705942269123,-699.54,0.00055068,120]
[312522191,1705942269133,-1748.34,0.00055068,120]
[312522192,1705942269143,-780.8,0.00055068,120]
[312522193,1705942269153,-500.0,0.00055068,120]
[312522194,1705942269162,-674.41,0.00055068,120]
[312522195,1705942269172,-526.37,0.00055068,2]
[312522196,1705942269181,-500.0,0.00055068,120]
[312522197,1705942269191,-795.91,0.00055068,120]
[312522198,1705942269202,-667.0,0.00055068,120]
[312522199,1705942269212,-500.0,0.00055068,120]
[312522200,1705942269227,-1000.0,0.00055068,2]
[312522201,1705942269242,-669.33,0.00055068,120]
[312522202,1705942269251,-568.69,0.00055068,120]
[312522203,1705942269261,-2117.65,0.00055068,120]
[312522204,1705942269271,-607.89,0.00055068,120]
[312522205,1705942269280,-500.0,0.00055068,120]
[312522206,1705942269290,-968.34,0.00055068,120]
[312522207,1705942269300,-554.18,0.00055068,120]
[312522208,1705942269310,-500.0,0.00055068,120]
[312522209,1705942269320,-663.62,0.00055068,120]
[312522210,1705942269330,-779.2,0.00055068,120]
[312522211,1705942269339,-917.47,0.00055068,120]
[312522212,1705942269349,-931.15,0.00055068,120]
[312522213,1705942269359,-500.0,0.00055068,120]
[312522214,1705942269368,-500.0,0.00055068,120]
[312522215,1705942269379,-500.0,0.00055068,120]
[312522216,1705942269389,-500.0,0.00055068,120]
[312522217,1705942269399,-500.0,0.00055068,120]
[312522218,1705942269409,-500.0,0.00055068,120]
[312522219,1705942269431,-674.69,0.00055068,120]
[312522220,1705942269441,-500.0,0.00055068,120]
[312522221,1705942269451,-7567.95,0.00055068,5]
[312522222,1705942269461,-1123.98,0.00055068,120]
[312522223,1705942269473,-1147.57,0.00055068,120]
[312522224,1705942269490,-984.05,0.00055068,120]
[312522225,1705942269507,-505.58,0.00055068,120]
[312522226,1705942269517,-1203.54,0.00055068,120]
[312522227,1705942269527,-500.0,0.00055068,120]
[312522228,1705942269537,-1141.4,0.00055068,120]
[312522229,1705942269547,-3747.78,0.00055068,120]
[312522230,1705942269561,-500.0,0.00055068,120]
[312522231,1705942269576,-845.71,0.00055068,120]
[312522232,1705942269591,-500.0,0.00055068,120]
[312522233,1705942269601,-583.15447744,0.00055068,120]
[312522234,1705942269611,-566.43,0.00055068,120]
[312522235,1705942269622,-500.0,0.00055068,120]
[312522236,1705942269633,-700.95,0.00055068,120]
[312522237,1705942269643,-500.0,0.00055068,120]
[312522238,1705942269654,-1493.6,0.00055068,120]
[312522239,1705942269664,-665.32,0.00055068,120]
[312522240,1705942269675,-500.0,0.00055068,120]
[312522241,1705942269685,-2461.03,0.00055068,120]
[312522242,1705942269695,-500.0,0.00055068,2]
[312522243,1705942269705,-902.4,0.00055068,120]
[312522244,1705942269716,-500.0,0.00055068,120]
[312522245,1705942269726,-500.0,0.00055068,120]
[312522246,1705942269737,-5152.1,0.00055068,120]
[312522247,1705942269747,-1243.93,0.00055068,120]
[312522248,1705942269757,-1453.38,0.00055068,120]
[312522249,1705942269768,-1208.07,0.00055068,120]
[312522250,1705942269778,-626.0,0.00055068,15]
[312522251,1705942269788,-242.0,0.00055068,7]
[312522252,1705942269800,-350.0,0.00055068,120]
[312522253,1705942269810,-250.0,0.0005507,30]
[312522254,1705942269822,-1000.0,0.00055082,120]
[312522255,1705942269832,-152.4684818,0.00055154,30]
[312522256,1705942269843,-160.94371986,0.00055154,30]
[312522257,1705942269853,-304.4094531,0.00055154,30]
[312522258,1705942269863,-213.80276045,0.00055154,30]
[312522259,1705942269876,-638.41089815,0.00055176,120]
[312522260,1705942269887,-452.27581386,0.00055178,120]
[312522261,1705942269899,-226.74152247,0.00055212,120]
[312522262,1705942269910,-154.41498708,0.00055215,120]
[312522263,1705942269921,-151.32270146,0.00055265,120]
[312522264,1705942269932,-638.41089815,0.00055283,120]
[312522265,1705942269943,-175.58867485,0.00055301,120]
[312522266,1705942269953,-156.43690265,0.00055303,120]
[312522267,1705942269964,-53279.2824149,0.00055304,2]
[312522268,1705942269978,-3509.1899177,0.00055304,2]
[312522269,1705942269990,-1798.1872002,0.00055304,2]
[312522270,1705942270001,-179.765924,0.00055342,120]
[312522271,1705942270012,-279.66955,0.00055342,120]
[312522272,1705942270023,-279.66955,0.00055342,120]
[312522273,1705942270034,-151.0,0.00055342,120]
[312522274,1705942270046,-178.49102,0.00055342,120]
[312522275,1705942270056,-500.0,0.00055342,30]
[312522276,1705942270066,-500.0,0.00055342,7]
[312522277,1705942270081,-500.0,0.00055342,30]
[312522278,1705942270092,-969.16,0.00055342,120]
[312522279,1705942270103,-606.64492223,0.00055342,30]
[312522280,1705942270113,-500.0,0.00055342,120]
[312522281,1705942270127,-12581.11,0.00055342,120]
[312522282,1705942270140,-1000.0,0.00055342,120]
[312522283,1705942270151,-500.0,0.00055342,120]
[312522284,1705942270163,-768.74,0.00055342,120]
[312522285,1705942270175,-500.0,0.00055342,120]
[312522286,1705942270185,-1000.0,0.00055342,120]
[312522287,1705942270196,-761.66,0.00055342,120]
[312522288,1705942270207,-500.0,0.00055342,120]
[312522289,1705942270218,-500.0,0.00055342,120]
[312522290,1705942270228,-579.81,0.00055342,120]
[312522291,1705942270239,-500.0,0.00055342,120]
[312522292,1705942270250,-500.0,0.00055342,120]
[312522293,1705942270343,-500.0,0.00055342,120]
[312522294,1705942270354,-500.0,0.00055342,120]
[312522295,1705942270364,-500.0,0.00055342,120]
[312522296,1705942270379,-500.0,0.00055342,120]
[312522297,1705942270389,-500.0,0.00055342,120]
[312522298,1705942270398,-500.0,0.00055342,120]
[312522299,1705942270409,-665.43,0.00055342,120]
[312522300,1705942270418,-719.77,0.00055342,120]
[312522301,1705942270428,-500.0,0.00055342,120]
[312522302,1705942270438,-500.0,0.00055342,120]
[312522303,1705942270448,-500.0,0.00055342,120]
[312522304,1705942270458,-807.38,0.00055342,120]
[312522305,1705942270468,-500.0,0.00055342,120]
[312522306,1705942270478,-501.06,0.00055342,120]
[312522307,1705942270488,-500.0,0.00055342,120]
[312522308,1705942270499,-500.0,0.00055342,120]
[312522309,1705942270509,-500.0,0.00055342,120]
[312522310,1705942270519,-500.0,0.00055342,120]
[312522311,1705942270528,-500.0,0.00055342,120]
[312522312,1705942270538,-614.6,0.00055342,120]
[312522313,1705942270548,-500.0,0.00055342,120]
[312522314,1705942270557,-500.0,0.00055342,120]
[312522315,1705942270568,-673.42,0.00055342,120]
[312522316,1705942270578,-268.28606958,0.00055342,120]
[312522317,1705942270588,-575.84,0.00055342,120]
[312522318,1705942270598,-500.0,0.00055342,120]
[312522319,1705942270608,-500.0,0.00055342,120]
[312522320,1705942270617,-616.04,0.00055342,120]
[312522321,1705942270630,-500.0,0.00055342,120]
[312522322,1705942270639,-810.82,0.00055342,120]
[312522323,1705942270648,-500.0,0.00055342,120]
[312522324,1705942270658,-659.18,0.00055342,2]
[312522325,1705942270667,-568.29,0.00055342,120]
[312522326,1705942270677,-500.0,0.00055342,120]
[312522327,1705942270687,-500.0,0.00055342,120]
[312522328,1705942270698,-500.0,0.00055342,120]
[312522329,1705942270708,-500.0,0.00055342,120]
[312522330,1705942270718,-500.0,0.00055342,120]
[312522331,1705942270728,-500.0,0.00055342,120]
[312522332,1705942270738,-500.0,0.00055342,120]
[312522333,1705942270748,-543.82,0.00055342,120]
[312522334,1705942270758,-537.34081174,0.00055342,120]
[312522335,1705942270768,-589.84,0.00055342,120]
[312522336,1705942270777,-528.59162798,0.00055342,120]
[312522337,1705942270787,-500.0,0.00055342,120]
[312522338,1705942270797,-500.0,0.00055342,2]
[312522339,1705942270806,-500.0,0.00055342,120]
[312522340,1705942270816,-500.0,0.00055342,120]
[312522341,1705942270826,-500.0,0.00055342,120]
[312522342,1705942270835,-500.0,0.00055342,120]
[312522343,1705942270844,-500.0,0.00055342,120]
[312522344,1705942270854,-500.0,0.00055342,120]
[312522345,1705942270866,-618.43,0.00055342,120]
[312522346,1705942270877,-500.0,0.00055342,120]
[312522347,1705942270887,-536.4516517,0.00055342,120]
[312522348,1705942270896,-256.77080052,0.00055342,120]
[312522349,1705942270905,-500.0,0.00055342,120]
[312522350,1705942270915,-500.0,0.00055342,120]
[312522351,1705942270924,-500.0,0.00055342,120]
[312522352,1705942270933,-503.21,0.00055342,120]
[312522353,1705942270943,-244.13165705,0.00055342,120]
[312522354,1705942270952,-500.0,0.00055342,120]
[312522355,1705942270961,-500.0,0.00055342,7]
[312522356,1705942270971,-500.0,0.00055342,120]
[312522357,1705942270980,-500.0,0.00055342,120]
[312522358,1705942270989,-548.09,0.00055342,120]
[312522359,1705942270998,-500.0,0.00055342,120]
[312522360,1705942271007,-500.0,0.00055342,120]
[312522361,1705942271017,-500.0,0.00055342,120]
[312522362,1705942271026,-540.67643545,0.00055342,120]
[312522363,1705942271036,-500.0,0.00055342,120]
[312522364,1705942271045,-500.0,0.00055342,120]
[312522365,1705942271055,-500.0,0.00055342,120]
[312522366,1705942271064,-500.0,0.00055342,120]
[312522367,1705942271073,-500.0,0.00055342,120]
[312522368,1705942271082,-545.0015744,0.00055342,120]
[312522369,1705942271092,-500.0,0.00055342,120]
[312522370,1705942271101,-635.0,0.00055342,120]
[312522371,1705942271110,-500.0,0.00055342,120]
[312522372,1705942271119,-500.0,0.00055342,120]
[312522373,1705942271130,-826.62,0.00055342,120]
[312522374,1705942271139,-500.0,0.00055342,120]
[312522375,1705942271148,-593.99,0.00055342,120]
[312522376,1705942271157,-513.2532689,0.00055342,120]
[312522377,1705942271166,-500.0,0.00055342,120]
[312522378,1705942271175,-500.0,0.00055342,120]
[312522379,1705942271184,-503.77,0.00055342,120]
[312522380,1705942271193,-500.0,0.00055342,120]
[312522381,1705942271203,-500.0,0.00055342,120]
[312522382,1705942271212,-500.0,0.00055342,120]
[312522383,1705942271221,-584.08,0.00055342,120]
[312522384,1705942271230,-500.0,0.00055342,120]
[312522385,1705942271239,-1733.58,0.00055342,120]
[312522386,1705942271248,-500.0,0.00055342,120]
[312522387,1705942271257,-500.0,0.00055342,120]
[312522388,1705942271267,-500.0,0.00055342,120]
[312522389,1705942271276,-500.0,0.00055342,120]
[312522390,1705942271286,-500.0,0.00055342,120]
[312522391,1705942271296,-481.04249996,0.00055342,120]
[312522392,1705942271306,-538.86,0.00055342,120]
[312522393,1705942271315,-500.0,0.00055342,120]
[312522394,1705942271324,-500.0,0.00055342,120]
[312522395,1705942271333,-500.0,0.00055342,120]
[312522396,1705942271342,-517.5,0.00055342,120]
[312522397,1705942271351,-500.0,0.00055342,120]
[312522398,1705942271360,-500.0,0.00055342,120]
[312522399,1705942271369,-873.69,0.00055342,120]
[312522400,1705942271380,-500.0,0.00055342,120]
[312522401,1705942271389,-500.0,0.00055342,120]
[312522402,1705942271399,-557.04,0.00055342,120]
[312522403,1705942271408,-500.0,0.00055342,120]
[312522404,1705942271417,-500.0,0.00055342,120]
[312522405,1705942271426,-500.0,0.00055342,120]
[312522406,1705942271435,-500.0,0.00055342,120]
[312522407,1705942271445,-500.0,0.00055342,120]
[312522408,1705942271454,-500.0,0.00055342,120]
[312522409,1705942271463,-500.0,0.00055342,120]
[312522410,1705942271474,-500.0,0.00055342,120]
[312522411,1705942271484,-500.0,0.00055342,120]
[312522412,1705942271493,-500.0,0.00055342,120]
[312522413,1705942271505,-326.42611031,0.00055342,120]
[312522414,1705942271514,-500.0,0.00055342,120]
[312522415,1705942271523,-727.32,0.00055342,120]
[312522416,1705942271532,-500.0,0.00055342,120]
[312522417,1705942271542,-500.0,0.00055342,120]
[312522418,1705942271551,-500.0,0.00055342,120]
[312522419,1705942271560,-791.21,0.00055342,120]
[312522420,1705942271569,-500.0,0.00055342,120]
[312522421,1705942271580,-500.0,0.00055342,120]
[312522422,1705942271590,-500.0,0.00055342,120]
[312522423,1705942271599,-903.36,0.00055342,120]
[312522424,1705942271608,-500.0,0.00055342,120]
[312522425,1705942271618,-1283.28,0.00055342,120]
[312522426,1705942271628,-515.92210337,0.00055342,120]
[312522427,1705942271637,-500.0,0.00055342,120]
[312522428,1705942271647,-594.65,0.00055342,120]
[312522429,1705942271656,-617.64,0.00055342,120]
[312522430,1705942271666,-720.46,0.00055342,120]
[312522431,1705942271675,-986.04,0.00055342,120]
[312522432,1705942271684,-723.96,0.00055342,120]
[312522433,1705942271694,-985.43,0.00055342,120]
[312522434,1705942271703,-519.85,0.00055342,120]
[312522435,1705942271712,-500.0,0.00055342,120]
[312522436,1705942271722,-500.0,0.00055342,120]
[312522437,1705942271732,-500.0,0.00055342,120]
[312522438,1705942271741,-1096.6,0.00055342,120]
[312522439,1705942271751,-500.0,0.00055342,120]
[312522440,1705942271760,-1001.01,0.00055342,120]
[312522441,1705942271770,-500.0,0.00055342,120]
[312522442,1705942271779,-500.0,0.00055342,120]
[312522443,1705942271788,-500.0,0.00055342,120]
[312522444,1705942271797,-500.0,0.00055342,120]
[312522445,1705942271806,-500.0,0.00055342,2]
[312522446,1705942271815,-500.0,0.00055342,120]
[312522447,1705942271824,-748.21,0.00055342,120]
[312522448,1705942271833,-601.52,0.00055342,120]
[312522449,1705942271842,-757.21,0.00055342,120]
[312522450,1705942271851,-500.0,0.00055342,120]
[312522451,1705942271860,-500.0,0.00055342,2]
[312522452,1705942271870,-578.69,0.00055342,120]
[312522453,1705942271880,-500.0,0.00055342,120]
[312522454,1705942271889,-500.0,0.00055342,120]
[312522455,1705942271898,-690.74,0.00055342,120]
[312522456,1705942271907,-1000.0,0.00055342,7]
[312522457,1705942271916,-655.68,0.00055342,120]
[312522458,1705942271926,-500.0,0.00055342,120]
[312522459,1705942271935,-815.64,0.00055342,120]
[312522460,1705942271945,-500.0,0.00055342,120]
[312522461,1705942271954,-500.0,0.00055342,120]
[312522462,1705942271963,-535.82,0.00055342,120]
[312522463,1705942271973,-987.66,0.00055342,120]
[312522464,1705942271982,-500.0,0.00055342,120]
[312522465,1705942271991,-507.42198784,0.00055342,120]
[312522466,1705942272000,-500.0,0.00055342,120]
[312522467,1705942272009,-500.0,0.00055342,120]
[312522468,1705942272018,-1207.6,0.00055342,120]
[312522469,1705942272028,-500.0,0.00055342,120]
[312522470,1705942272037,-799.27,0.00055342,120]
[312522471,1705942272046,-509.48,0.00055342,120]
[312522472,1705942272055,-956.9,0.00055342,120]
[312522473,1705942272065,-1236.74,0.00055342,120]
[312522474,1705942272074,-500.0,0.00055342,120]
[312522475,1705942272083,-500.0,0.00055342,120]
[312522476,1705942272093,-794.46,0.00055342,120]
[312522477,1705942272102,-514.94175188,0.00055342,120]
[312522478,1705942272112,-676.21,0.00055342,120]
[312522479,1705942272121,-784.83,0.00055342,120]
[312522480,1705942272132,-500.0,0.00055342,120]
[312522481,1705942272142,-1206.35,0.00055342,120]
[312522482,1705942272155,-268.50258665,0.00055342,120]
[312522483,1705942272165,-1325.76,0.00055342,120]
[312522484,1705942272174,-500.0,0.00055342,7]
[312522485,1705942272183,-940.83,0.00055342,120]
[312522486,1705942272193,-766.88,0.00055342,120]
[312522487,1705942272203,-500.0,0.00055342,120]
[312522488,1705942272212,-283.68375953,0.00055342,120]
[312522489,1705942272222,-500.0,0.00055342,120]
[312522490,1705942272232,-882.54,0.00055342,2]
[312522491,1705942272241,-1098.14,0.00055342,120]
[312522492,1705942272251,-214.00673261,0.00055342,120]
[312522493,1705942272260,-1272.77,0.00055342,120]
[312522494,1705942272270,-855.01,0.00055342,120]
[312522495,1705942272279,-500.0,0.00055342,120]
[312522496,1705942272289,-514.39532442,0.00055342,120]
[312522497,1705942272299,-1433.57,0.00055342,120]
[312522498,1705942272309,-500.0,0.00055342,120]
[312522499,1705942272319,-486.70393495,0.00055342,120]
[312522500,1705942272329,-1004.38,0.00055342,120]
[312522501,1705942272339,-500.0,0.00055342,120]
[312522502,1705942272348,-613.63,0.00055342,120]
[312522503,1705942272359,-500.0,0.00055342,120]
[312522504,1705942272369,-500.0,0.00055342,120]
[312522505,1705942272381,-1058.65,0.00055342,120]
[312522506,1705942272391,-511.59,0.00055342,120]
[312522507,1705942272401,-851.13,0.00055342,120]
[312522508,1705942272411,-933.89,0.00055342,120]
[312522509,1705942272421,-531.0110296,0.00055342,120]
[312522510,1705942272431,-711.76,0.00055342,120]
[312522511,1705942272441,-500.0,0.00055342,120]
[312522512,1705942272450,-500.0,0.00055342,120]
[312522513,1705942272460,-572.52,0.00055342,120]
[312522514,1705942272470,-500.0,0.00055342,120]
[312522515,1705942272480,-773.03,0.00055342,120]
[312522516,1705942272491,-500.0,0.00055342,120]
[312522517,1705942272502,-500.0,0.00055342,120]
[312522518,1705942272512,-762.64,0.00055342,120]
[312522519,1705942272521,-500.0,0.00055342,120]
[312522520,1705942272531,-509.59,0.00055342,120]
[312522521,1705942272540,-665.88,0.00055342,120]
[312522522,1705942272550,-1002.76,0.00055342,120]
[312522523,1705942272560,-500.0,0.00055342,120]
[312522524,1705942272570,-611.15693825,0.00055342,120]
[312522525,1705942272581,-500.0,0.00055342,120]
[312522526,1705942272590,-500.0,0.00055342,120]
[312522527,1705942272600,-904.02,0.00055342,120]
[312522528,1705942272610,-827.04,0.00055342,120]
[312522529,1705942272620,-704.08,0.00055342,120]
[312522530,1705942272631,-447.57213007,0.00055342,120]
[312522531,1705942272640,-787.53,0.00055342,120]
[312522532,1705942272650,-1047.73,0.00055342,120]
[312522533,1705942272660,-872.35,0.00055342,120]
[312522534,1705942272670,-510.77899034,0.00055342,120]
[312522535,1705942272680,-500.0,0.00055342,120]
[312522536,1705942272689,-500.0,0.00055342,120]
[312522537,1705942272698,-500.0,0.00055342,120]
[312522538,1705942272708,-973.07,0.00055342,120]
[312522539,1705942272718,-500.0,0.00055342,120]
[312522540,1705942272728,-1055.58,0.00055342,120]
[312522541,1705942272739,-527.63753586,0.00055342,120]
[312522542,1705942272748,-500.0,0.00055342,120]
[312522543,1705942272758,-592.41,0.00055342,120]
[312522544,1705942272768,-500.0,0.00055342,120]
[312522545,1705942272778,-500.0,0.00055342,120]
[312522546,1705942272787,-500.0,0.00055342,120]
[312522547,1705942272797,-1284.43,0.00055342,120]
[312522548,1705942272807,-500.0,0.00055342,120]
[312522549,1705942272816,-1139.91,0.00055342,120]
[312522550,1705942272827,-500.0,0.00055342,120]
[312522551,1705942272837,-500.0,0.00055342,120]
[312522552,1705942272847,-562.17,0.00055342,120]
[312522553,1705942272857,-750.36,0.00055342,120]
[312522554,1705942272867,-539.03,0.00055342,120]
[312522555,1705942272878,-500.0,0.00055342,120]
[312522556,1705942272888,-1374.87,0.00055342,120]
[312522557,1705942272898,-711.43,0.00055342,120]
[312522558,1705942272908,-579.03,0.00055342,120]
[312522559,1705942272918,-500.0,0.00055342,120]
[312522560,1705942272928,-578.18186936,0.00055342,120]
[312522561,1705942272937,-1076.02,0.00055342,120]
[312522562,1705942272947,-524.25088007,0.00055342,120]
[312522563,1705942272956,-500.0,0.00055342,120]
[312522564,1705942272965,-1080.86,0.00055342,120]
[312522565,1705942272975,-559.5,0.00055342,120]
[312522566,1705942272984,-500.0,0.00055342,120]
[312522567,1705942272993,-500.0,0.00055342,120]
[312522568,1705942273003,-1198.92,0.00055342,120]
[312522569,1705942273012,-546.17,0.00055342,120]
[312522570,1705942273022,-1032.79,0.00055342,120]
[312522571,1705942273031,-285.24721225,0.00055342,120]
[312522572,1705942273040,-912.89,0.00055342,120]
[312522573,1705942273050,-1291.04,0.00055342,120]
[312522574,1705942273059,-719.62,0.00055342,120]
[312522575,1705942273068,-1228.18,0.00055342,120]
[312522576,1705942273077,-500.0,0.00055342,120]
[312522577,1705942273087,-500.0,0.00055342,120]
[312522578,1705942273097,-1064.71,0.00055342,120]
[312522579,1705942273107,-933.5,0.00055342,120]
[312522580,1705942273117,-500.0,0.00055342,120]
[312522581,1705942273129,-500.0,0.00055342,120]
[312522582,1705942273138,-512.46,0.00055342,120]
[312522583,1705942273147,-1092.85,0.00055342,120]
[312522584,1705942273157,-283.8772339,0.00055342,120]
[312522585,1705942273171,-1122.93,0.00055342,120]
[312522586,1705942273180,-460.35775599,0.00055342,120]
[312522587,1705942273194,-834.87,0.00055342,120]
[312522588,1705942273206,-1098.97,0.00055342,120]
[312522589,1705942273215,-500.0,0.00055342,120]
[312522590,1705942273225,-500.0,0.00055342,120]
[312522591,1705942273237,-500.0,0.00055342,120]
[312522592,1705942273246,-500.0,0.00055342,120]
[312522593,1705942273256,-1124.27,0.00055342,120]
[312522594,1705942273271,-500.0,0.00055342,120]
[312522595,1705942273280,-548.35,0.00055342,120]
[312522596,1705942273290,-500.0,0.00055342,120]
[312522597,1705942273299,-676.24,0.00055342,120]
[312522598,1705942273309,-1183.29,0.00055342,120]
[312522599,1705942273319,-1234.09,0.00055342,120]
[312522600,1705942273328,-500.0,0.00055342,120]
[312522601,1705942273342,-500.0,0.00055342,120]
[312522602,1705942273360,-500.0,0.00055342,120]
[312522603,1705942273369,-500.0,0.00055342,120]
[312522604,1705942273382,-942.51,0.00055342,120]
[312522605,1705942273391,-539.8,0.00055342,120]
[312522606,1705942273401,-500.0,0.00055342,120]
[312522607,1705942273412,-1200.35,0.00055342,120]
[312522608,1705942273421,-500.0,0.00055342,120]
[312522609,1705942273430,-995.47,0.00055342,120]
[312522610,1705942273440,-500.0,0.00055342,120]
[312522611,1705942273450,-1034.97,0.00055342,120]
[312522612,1705942273459,-500.0,0.00055342,120]
[312522613,1705942273474,-500.0,0.00055342,120]
[312522614,1705942273490,-874.88,0.00055342,120]
[312522615,1705942273500,-509.74785489,0.00055342,120]
[312522616,1705942273510,-507.23,0.00055342,120]
[312522617,1705942273522,-562.05,0.00055342,120]
[312522618,1705942273533,-514.2,0.00055342,120]
[312522619,1705942273543,-1038.58,0.00055342,120]
[312522620,1705942273567,-1546.51,0.00055342,2]
[312522621,1705942273578,-500.0,0.00055342,120]
[312522622,1705942273590,-552.78,0.00055342,120]
[312522623,1705942273602,-1166.09,0.00055342,120]
[312522624,1705942273612,-500.0,0.00055342,120]
[312522625,1705942273622,-500.0,0.00055342,120]
[312522626,1705942273632,-916.75,0.00055342,120]
[312522627,1705942273641,-521.4330393,0.00055342,120]
[312522628,1705942273651,-500.0,0.00055342,120]
[312522629,1705942273661,-731.13,0.00055342,120]
[312522630,1705942273671,-825.25,0.00055342,120]
[312522631,1705942273681,-703.42,0.00055342,120]
[312522632,1705942273691,-500.0,0.00055342,120]
[312522633,1705942273701,-692.04,0.00055342,120]
[312522634,1705942273711,-500.0,0.00055342,120]
[312522635,1705942273721,-597.16,0.00055342,120]
[312522636,1705942273731,-609.93,0.00055342,120]
[312522637,1705942273741,-500.0,0.00055342,7]
[312522638,1705942273751,-529.28988037,0.00055342,120]
[312522639,1705942273760,-500.0,0.00055342,120]
[312522640,1705942273769,-668.81,0.00055342,120]
[312522641,1705942273779,-604.43,0.00055342,120]
[312522642,1705942273788,-500.0,0.00055342,120]
[312522643,1705942273798,-435.51,0.00055342,120]
[312522644,1705942273808,-820.72,0.00055342,120]
[312522645,1705942273817,-500.0,0.00055342,120]
[312522646,1705942273827,-500.0,0.00055342,2]
[312522647,1705942273836,-500.0,0.00055342,120]
[312522648,1705942273845,-510.66,0.00055342,120]
[312522649,1705942273854,-1104.92,0.00055342,120]
[312522650,1705942273864,-500.0,0.00055342,120]
[312522651,1705942273874,-500.0,0.00055342,120]
[312522652,1705942273883,-150.0,0.00055342,14]
[312522653,1705942273893,-611.57,0.00055342,120]
[312522654,1705942273902,-500.0,0.00055342,120]
[312522655,1705942273912,-500.0,0.00055342,120]
[312522656,1705942273921,-705.3,0.00055342,120]
[312522657,1705942273931,-782.46,0.00055342,120]
[312522658,1705942273940,-500.0,0.00055342,120]
[312522659,1705942273949,-1193.75,0.00055342,120]
[312522660,1705942273959,-500.0,0.00055342,120]
[312522661,1705942273968,-500.0,0.00055342,120]
[312522662,1705942273978,-500.0,0.00055342,120]
[312522663,1705942273987,-841.24,0.00055342,120]
[312522664,1705942273998,-774.06,0.00055342,120]
[312522665,1705942274009,-500.0,0.00055342,120]
[312522666,1705942274019,-706.09,0.00055342,120]
[312522667,1705942274029,-1049.13,0.00055342,120]
[312522668,1705942274039,-500.0,0.00055342,120]
[312522669,1705942274049,-722.39,0.00055342,120]
[312522670,1705942274059,-500.0,0.00055342,120]
[312522671,1705942274070,-500.0,0.00055342,120]
[312522672,1705942274081,-1098.78,0.00055342,120]
[312522673,1705942274092,-500.0,0.00055342,120]
[312522674,1705942274103,-1040.43,0.00055342,120]